bitfinex/quotes_BTCUSD_20241226
["timestamp","ask_amount","ask_price","bid_price","bid_amount"]
[1735207069167,0.0771,95547.0,95546.0,0.00300089]
[1735207069347,0.07840822,95547.0,95546.0,0.00300089]
[1735207069562,0.07840822,95547.0,95546.0,8.9e-07]
[1735207070847,0.07840822,95547.0,95546.0,0.00300089]
[1735207071048,0.07840822,95547.0,95546.0,8.9e-07]
[1735207071367,0.07840822,95547.0,95546.0,0.00300089]
[1735207072371,0.07840822,95547.0,95546.0,8.9e-07]
[1735207072556,0.07840822,95547.0,95546.0,0.00200089]
[1735207074814,0.07940822,95547.0,95546.0,8.9e-07]
[1735207075015,0.07940822,95547.0,95546.0,0.00100089]
[1735207075721,0.07840822,95547.0,95546.0,8.9e-07]
[1735207076565,0.40510889,95547.0,95546.0,8.9e-07]
[1735207076770,0.44890067,95547.0,95546.0,8.9e-07]
[1735207077213,0.45090067,95547.0,95546.0,0.00200089]
[1735207077424,0.45090067,95547.0,95546.0,8.9e-07]
[1735207077632,0.44890067,95547.0,95546.0,0.00200089]
[1735207077985,0.38097802,95547.0,95546.0,8.9e-07]
[1735207078193,0.38097802,95547.0,95546.0,0.00100089]
[1735207078418,0.37997802,95547.0,95546.0,8.9e-07]
[1735207078788,0.38097802,95547.0,95546.0,0.00100089]
[1735207079279,0.38097802,95547.0,95546.0,8.9e-07]
[1735207079489,0.48496434,95547.0,95546.0,8.9e-07]
[1735207079675,0.48496434,95547.0,95546.0,9e-08]
[1735207080140,0.48404994,95547.0,95546.0,9e-08]
[1735207080341,0.48704994,95547.0,95546.0,9e-08]
[1735207080948,0.48904994,95547.0,95546.0,9e-08]
[1735207082355,0.51017649,95547.0,95546.0,9e-08]
[1735207083808,0.78517649,95547.0,95546.0,9e-08]
[1735207084554,0.68119017,95547.0,95546.0,9e-08]
[1735207087102,0.67739847,95547.0,95546.0,9e-08]
[1735207087328,0.35531215,95547.0,95546.0,9e-08]
[1735207087530,0.0050856,95547.0,95546.0,9e-08]
[1735207087715,0.00639394,95547.0,95546.0,9e-08]
[1735207088119,0.00339394,95547.0,95546.0,9e-08]
[1735207088422,8.56e-05,95547.0,95546.0,9e-08]
[1735207088642,8.56e-05,95547.0,95546.0,0.00300009]
[1735207088795,0.0013939,95547.0,95546.0,9e-08]
[1735207089180,0.0013939,95547.0,95546.0,0.00300009]
[1735207089388,0.0013939,95547.0,95546.0,9e-08]
[1735207089896,0.0023939,95547.0,95546.0,9e-08]
[1735207090371,0.0013939,95547.0,95546.0,9e-08]
[1735207090608,0.16660144,95547.0,95546.0,9e-08]
[1735207090811,0.27029314,95547.0,95546.0,0.00400009]
[1735207091012,0.26898484,95547.0,95546.0,0.00400009]
[1735207091212,0.20776362,95547.0,95546.0,0.00400009]
[1735207091572,0.20776362,95547.0,95546.0,9e-08]
[1735207091774,0.21276362,95547.0,95546.0,9e-08]
[1735207092232,0.21076362,95547.0,95546.0,9e-08]
[1735207092491,0.21276362,95547.0,95546.0,9e-08]
[1735207092703,0.18976362,95547.0,95546.0,9e-08]
[1735207092876,0.10738032,95547.0,95546.0,9e-08]
[1735207093404,0.11038032,95547.0,95546.0,9e-08]
[1735207093783,0.10538032,95547.0,95546.0,9e-08]
[1735207094020,0.10838032,95547.0,95546.0,9e-08]
[1735207094137,0.11038032,95547.0,95546.0,9e-08]
[1735207094339,0.10407192,95547.0,95546.0,9e-08]
[1735207094541,0.10638029,95547.0,95546.0,9e-08]
[1735207094791,0.0040856,95547.0,95546.0,9e-08]
[1735207095413,0.00539397,95547.0,95546.0,9e-08]
[1735207096104,0.00918567,95547.0,95546.0,9e-08]
[1735207096832,0.00618567,95547.0,95546.0,9e-08]
[1735207097002,0.00239397,95547.0,95546.0,9e-08]
[1735207097209,0.00918567,95547.0,95546.0,9e-08]
[1735207097401,0.00818567,95547.0,95546.0,9e-08]
[1735207097639,0.00618567,95547.0,95546.0,9e-08]
[1735207098040,0.00818567,95547.0,95546.0,9e-08]
[1735207098399,0.00539397,95547.0,95546.0,9e-08]
[1735207099269,0.00239397,95547.0,95546.0,9e-08]
[1735207099471,0.00539397,95547.0,95546.0,9e-08]
[1735207101846,0.00918567,95547.0,95546.0,9e-08]
[1735207102888,0.07118606,95547.0,95546.0,9e-08]
[1735207104501,0.00918567,95547.0,95546.0,9e-08]
[1735207104664,0.00539397,95547.0,95546.0,9e-08]
[1735207104832,0.00918567,95547.0,95546.0,9e-08]
[1735207105264,0.00539397,95547.0,95546.0,9e-08]
[1735207106684,0.0040856,95547.0,95546.0,9e-08]
[1735207106889,0.0010856,95547.0,95546.0,9e-08]
[1735207108022,0.0030856,95547.0,95546.0,9e-08]
[1735207108135,0.00539391,95547.0,95546.0,9e-08]
[1735207108539,0.00439391,95547.0,95546.0,9e-08]
[1735207108949,0.00439391,95547.0,95546.0,0.00100009]
[1735207109147,0.00139391,95547.0,95546.0,0.00100009]
[1735207110195,0.07919391,95547.0,95546.0,0.00100009]
[1735207110393,0.00239391,95547.0,95546.0,0.00100009]
[1735207111824,0.0010856,95547.0,95546.0,0.00100009]
[1735207112237,0.0010856,95547.0,95546.0,9e-08]
[1735207112440,0.0010856,95547.0,95546.0,0.12830009]
[1735207112441,8.56e-05,95547.0,95546.0,0.12830009]
[1735207112670,0.0010856,95547.0,95546.0,0.45095595]
[1735207112870,0.0010856,95547.0,95546.0,0.44895595]
[1735207113079,8.56e-05,95547.0,95546.0,0.35195595]
[1735207113428,8.56e-05,95547.0,95546.0,0.32949471]
[1735207114429,8.56e-05,95547.0,95546.0,0.5728883]
[1735207114637,8.56e-05,95547.0,95546.0,0.5738883]
[1735207114841,8.56e-05,95547.0,95546.0,0.5728883]
[1735207114973,8.56e-05,95547.0,95546.0,0.98619762]
[1735207115196,8.56e-05,95547.0,95546.0,0.90180403]
[1735207115397,8.56e-05,95547.0,95546.0,0.88980403]
[1735207115601,8.56e-05,95547.0,95546.0,0.90280403]
[1735207116047,8.56e-05,95547.0,95546.0,0.89380403]
[1735207116254,8.56e-05,95547.0,95546.0,0.89880403]
[1735207116461,8.56e-05,95547.0,95546.0,0.90280403]
[1735207117091,8.56e-05,95547.0,95546.0,0.89880403]
[1735207117205,0.0010856,95547.0,95546.0,0.90380403]
[1735207117405,0.0010856,95547.0,95546.0,1.2508648]
[1735207118443,8.56e-05,95547.0,95546.0,1.2458648]
[1735207118642,0.0010856,95547.0,95546.0,1.2508648]
[1735207118847,0.0010856,95547.0,95546.0,1.2598648]
[1735207119297,0.0010856,95547.0,95546.0,1.2418648]
[1735207119437,0.0010856,95547.0,95546.0,1.2508648]
[1735207120320,0.0010856,95547.0,95546.0,1.28777948]
[1735207120771,0.20585501,95570.0,95558.0,0.0962083]
[1735207121071,0.2059071,95570.0,95560.0,0.1263]
[1735207121271,0.2059071,95570.0,95561.0,0.14663578]
[1735207122705,0.2059071,95570.0,95561.0,0.15263578]
[1735207122971,0.2059071,95570.0,95561.0,0.15363578]
[1735207124186,0.2059071,95570.0,95561.0,0.11098632]
[1735207124389,0.2059071,95570.0,95561.0,0.007]
[1735207125061,0.2059071,95570.0,95560.0,0.0477]
[1735207125259,0.4151781,95570.0,95561.0,0.004]
[1735207125489,5.209e-05,95570.0,95561.0,0.004]
[1735207125637,5.209e-05,95570.0,95546.0,0.09388845]
[1735207125638,0.209306,95554.0,95546.0,0.09388845]
[1735207126168,0.02100463,95570.0,95546.0,9e-08]
[1735207126169,0.209317,95549.0,95546.0,9e-08]
[1735207126743,0.418634,95549.0,95546.0,9e-08]
[1735207126947,0.418634,95549.0,95546.0,0.00100009]
[1735207128152,0.418634,95549.0,95546.0,0.00700009]
[1735207128343,0.418634,95549.0,95546.0,0.00100009]
[1735207128790,0.418634,95549.0,95546.0,0.00300009]
[1735207129008,0.418634,95549.0,95546.0,0.00500009]
[1735207129470,0.418634,95549.0,95546.0,0.00300009]
[1735207134552,0.418634,95549.0,95546.0,9e-08]
[1735207134799,0.418634,95549.0,95546.0,0.00300009]
[1735207137199,0.418634,95549.0,95546.0,9e-08]
[1735207137573,0.418634,95549.0,95546.0,0.00300009]
[1735207141100,0.209321,95547.0,95546.0,0.00300009]
[1735207141303,0.2131127,95547.0,95546.0,0.00300009]
[1735207141920,0.209321,95547.0,95546.0,0.00300009]
[1735207142122,0.209317,95549.0,95546.0,0.00300009]
[1735207142300,0.418634,95549.0,95546.0,0.00300009]
[1735207142880,0.418634,95549.0,95546.0,9e-08]
[1735207143132,0.418634,95549.0,95546.0,0.00200009]
[1735207143332,0.418634,95549.0,95546.0,9e-08]
[1735207143705,0.418634,95549.0,95546.0,0.00400009]
[1735207143906,0.418634,95549.0,95546.0,9e-08]
[1735207144275,0.418634,95549.0,95546.0,0.00200009]
[1735207144475,0.418634,95549.0,95546.0,9e-08]
[1735207144880,0.12647327,95560.0,95546.0,0.00100009]
[1735207144881,0.209301,95557.0,95546.0,0.00100009]
[1735207145251,0.20929,95561.0,95547.0,0.0794]
[1735207145446,0.20929,95561.0,95548.0,0.02235084]
[1735207146212,0.418581,95561.0,95548.0,0.02235084]
[1735207146412,0.419581,95561.0,95548.0,0.02235084]
[1735207146766,0.419581,95561.0,95548.0,0.002]
[1735207146952,0.419581,95561.0,95547.0,0.0794]
[1735207147251,0.419581,95561.0,95548.0,0.002]
[1735207147643,0.419581,95561.0,95547.0,0.08960683]
[1735207147844,0.418581,95561.0,95548.0,0.003]
[1735207148148,0.20929,95561.0,95549.0,0.11324701]
[1735207148461,0.20929,95561.0,95549.0,0.10398632]
[1735207148661,0.20929,95561.0,95549.0,0.10328632]
[1735207150990,0.20929,95561.0,95549.0,0.10728632]
[1735207151593,0.20929,95561.0,95549.0,0.10828632]
[1735207152019,0.20929,95561.0,95549.0,0.10728632]
[1735207152238,0.20929,95561.0,95549.0,0.10328632]
[1735207152437,0.41858,95561.0,95549.0,0.10328632]
[1735207152641,0.20929,95561.0,95549.0,0.10828632]
[1735207152889,0.20929,95561.0,95549.0,0.10328632]
[1735207153306,0.20929,95561.0,95550.0,0.01928932]
[1735207154273,0.20929,95561.0,95549.0,0.10428632]
[1735207154931,0.20929,95561.0,95549.0,0.10328632]
[1735207155291,0.20929,95561.0,95549.0,0.10828632]
[1735207155497,0.209313,95551.0,95549.0,0.005]
[1735207155697,0.209313,95551.0,95546.0,9e-08]
[1735207155698,0.0832,95549.0,95546.0,9e-08]
[1735207155900,0.0724,95547.0,95546.0,9e-08]
[1735207156098,0.38701573,95547.0,95546.0,9e-08]
[1735207156319,0.38949902,95547.0,95546.0,9e-08]
[1735207156900,0.38949902,95547.0,95546.0,0.00100009]
[1735207157337,0.38949902,95547.0,95546.0,0.00600009]
[1735207158205,0.38949902,95547.0,95546.0,0.00500009]
[1735207158607,0.38949902,95547.0,95546.0,0.00100009]
[1735207158808,0.38949902,95547.0,95546.0,0.00300009]
[1735207158984,0.38949902,95547.0,95546.0,0.00200009]
[1735207159706,0.38570732,95547.0,95546.0,0.00200009]
[1735207159925,0.38949902,95547.0,95546.0,0.00200009]
[1735207161158,0.292516,95549.0,95546.0,0.00200009]
[1735207161461,0.209316,95549.0,95546.0,0.00200009]
[1735207162024,0.209303,95556.0,95546.0,9e-08]
[1735207162244,0.209312,95552.0,95546.0,9e-08]
[1735207162448,0.001,95549.0,95546.0,0.00100009]
[1735207162918,0.209312,95552.0,95546.0,0.00100009]
[1735207163143,0.209312,95552.0,95546.0,9e-08]
[1735207163363,0.418624,95552.0,95546.0,9e-08]
[1735207163518,0.418624,95552.0,95546.0,0.00200009]
[1735207163720,0.418624,95552.0,95546.0,9e-08]
[1735207164142,0.418624,95552.0,95546.0,0.00400009]
[1735207164769,0.418624,95552.0,95546.0,0.00500009]
[1735207165299,0.418624,95552.0,95546.0,9e-08]
[1735207165644,0.418624,95552.0,95546.0,0.00600009]
[1735207166057,0.418624,95552.0,95546.0,0.00500009]
[1735207166550,0.418624,95552.0,95546.0,9e-08]
[1735207166737,0.20932,95548.0,95546.0,0.00600009]
[1735207166871,0.20932,95548.0,95546.0,9e-08]
[1735207167285,0.20932,95548.0,95546.0,0.00500009]
[1735207167871,0.20932,95548.0,95546.0,0.00600009]
[1735207168406,0.20932,95548.0,95546.0,0.00500009]
[1735207168724,0.20932,95548.0,95546.0,0.00200009]
[1735207168889,0.20932,95548.0,95546.0,0.00700009]
[1735207169088,0.20932,95548.0,95546.0,9e-08]
[1735207169342,0.20932,95548.0,95546.0,0.00700009]
[1735207170815,0.10320823,95547.0,95546.0,0.00700009]
[1735207171019,0.32920107,95547.0,95546.0,0.00700009]
[1735207171219,0.32789284,95547.0,95546.0,0.00700009]
[1735207171620,0.25477802,95547.0,95546.0,9e-08]
[1735207171844,0.25098632,95547.0,95546.0,9e-08]
[1735207172045,0.25477802,95547.0,95546.0,0.00700009]
[1735207172262,0.25477802,95547.0,95546.0,0.00100009]
[1735207172464,0.25477802,95547.0,95546.0,0.00400009]
[1735207173967,0.25098632,95547.0,95546.0,0.00400009]
[1735207174168,0.25477802,95547.0,95546.0,0.00400009]
[1735207174892,0.25477802,95547.0,95546.0,9e-08]
[1735207175097,0.25477802,95547.0,95546.0,0.00300009]
[1735207175301,0.34408434,95547.0,95546.0,9e-08]
[1735207175503,0.34408434,95547.0,95546.0,0.00200009]
[1735207176045,0.49408434,95547.0,95546.0,0.00200009]
[1735207177104,0.40098632,95547.0,95546.0,0.00200009]
[1735207179400,0.40477802,95547.0,95546.0,0.00200009]
[1735207182033,0.40098632,95547.0,95546.0,0.00200009]
[1735207182262,0.40477802,95547.0,95546.0,0.00200009]
[1735207182657,0.40098632,95547.0,95546.0,0.00200009]
[1735207182861,0.40477802,95547.0,95546.0,0.00200009]
[1735207183502,0.40098632,95547.0,95546.0,0.00200009]
[1735207183705,0.0789,95547.0,95546.0,0.00200009]
[1735207183887,0.08020839,95547.0,95546.0,0.00200009]
[1735207185173,0.1558695,95547.0,95546.0,0.00200009]
[1735207185465,0.08400009,95547.0,95546.0,0.00200009]
[1735207185844,0.08020839,95547.0,95546.0,0.00200009]
[1735207188588,0.21098641,95547.0,95546.0,9e-08]
[1735207188801,0.20967802,95547.0,95546.0,9e-08]
[1735207190249,0.21167802,95547.0,95546.0,9e-08]
[1735207190664,0.209336,95540.0,95539.0,0.000104]
[1735207190865,0.2131277,95540.0,95539.0,0.000104]
[1735207191067,0.209336,95540.0,95539.0,0.000104]
[1735207191810,0.20938807,95540.0,95539.0,0.000104]
[1735207192232,0.20938807,95540.0,95539.0,0.002104]
[1735207195493,0.20938807,95540.0,95539.0,0.0022752]
[1735207200349,5.207e-05,95540.0,95539.0,0.0022752]
[1735207201234,0.20754672,95540.0,95539.0,0.0022752]
[1735207201436,0.28979096,95540.0,95539.0,0.0022752]
[1735207201640,5.207e-05,95540.0,95539.0,0.0022752]
[1735207201999,0.00136044,95540.0,95539.0,0.0022752]
[1735207202547,0.00136044,95540.0,95539.0,0.0002752]
[1735207202688,0.08435214,95540.0,95539.0,0.0002752]
[1735207203164,0.08635214,95540.0,95539.0,0.0002752]
[1735207203367,0.08256044,95540.0,95539.0,0.0002752]
[1735207203605,0.00336049,95540.0,95539.0,0.0002752]
[1735207203783,0.00136049,95540.0,95539.0,0.0002752]
[1735207203955,0.12834681,95540.0,95539.0,0.0002752]
[1735207204134,0.21227856,95540.0,95539.0,0.0002752]
[1735207204337,0.21097014,95540.0,95539.0,0.0002752]
[1735207204768,0.21097014,95540.0,95539.0,0.0022752]
[1735207205787,0.29396184,95540.0,95539.0,0.0022752]
[1735207206192,0.21003009,95540.0,95539.0,0.0022752]
[1735207208875,0.36003009,95540.0,95539.0,0.0022752]
[1735207209664,0.37057131,95540.0,95539.0,0.0022752]
[1735207210402,0.37057131,95540.0,95539.0,0.0002752]
[1735207210538,0.37257131,95540.0,95539.0,0.0002752]
[1735207211146,0.47655763,95540.0,95539.0,0.0002752]
[1735207211916,0.47076593,95540.0,95539.0,0.0002752]
[1735207212093,0.47455763,95540.0,95539.0,0.0002752]
[1735207212305,0.47655763,95540.0,95539.0,0.0002752]
[1735207213091,0.22257131,95540.0,95539.0,0.0002752]
[1735207223209,0.34837177,95540.0,95539.0,2e-07]
[1735207223420,0.32257131,95540.0,95539.0,2e-07]
[1735207224330,0.32057131,95540.0,95539.0,2e-07]
[1735207224534,0.42455763,95540.0,95539.0,2e-07]
[1735207224738,0.76506481,95540.0,95539.0,2e-07]
[1735207224939,0.76806481,95540.0,95539.0,2e-07]
[1735207225582,0.61765929,95540.0,95539.0,2e-07]
[1735207227447,0.57093838,95540.0,95539.0,2e-07]
[1735207228517,0.47757131,95540.0,95539.0,2e-07]
[1735207228716,0.37757131,95540.0,95539.0,2e-07]
[1735207229525,0.37457131,95540.0,95539.0,2e-07]
[1735207229724,0.47476593,95540.0,95539.0,2e-07]
[1735207229923,0.47776593,95540.0,95539.0,2e-07]
[1735207230247,0.00705207,95540.0,95539.0,2e-07]
[1735207230447,0.00705207,95540.0,95539.0,0.1231002]
[1735207230650,0.00605207,95540.0,95539.0,0.1231002]
[1735207230810,0.00405207,95540.0,95539.0,0.1231002]
[1735207231008,0.00405207,95540.0,95539.0,0.0470002]
[1735207231211,0.04946277,95540.0,95539.0,0.0470002]
[1735207231410,0.00305207,95540.0,95539.0,0.0470002]
[1735207231624,0.00305207,95540.0,95539.0,0.0480002]
[1735207232325,0.00305207,95540.0,95539.0,0.0470002]
[1735207233220,5.207e-05,95540.0,95539.0,0.1231002]
[1735207233350,5.207e-05,95540.0,95539.0,0.23108652]
[1735207233564,8.56e-05,95546.0,95545.0,0.1962083]
[1735207233771,8.56e-05,95546.0,95545.0,0.37629462]
[1735207234019,8.56e-05,95546.0,95545.0,0.57329462]
[1735207234256,8.56e-05,95561.0,95548.0,0.3462083]
[1735207234469,8.56e-05,95561.0,95548.0,0.45019462]
[1735207234723,8.56e-05,95561.0,95560.0,0.0962083]
[1735207234955,8.56e-05,95561.0,95560.0,0.40948662]
[1735207235290,8.56e-05,95561.0,95560.0,0.53918662]
[1735207235485,8.56e-05,95561.0,95560.0,0.32989462]
[1735207236905,8.56e-05,95561.0,95560.0,0.33689462]
[1735207237109,8.56e-05,95561.0,95560.0,0.34089462]
[1735207237523,8.56e-05,95561.0,95560.0,0.33689462]
[1735207237755,8.56e-05,95561.0,95560.0,0.003]
[1735207237977,8.56e-05,95561.0,95560.0,0.011]
[1735207238177,0.00139369,95561.0,95560.0,0.011]
[1735207238536,0.00139369,95561.0,95560.0,0.008]
[1735207238761,0.00135369,95561.0,95560.0,0.008]
[1735207239383,0.00135369,95561.0,95536.0,0.0962083]
[1735207239585,4.56e-05,95561.0,95560.0,0.008]
[1735207239758,4.56e-05,95561.0,95559.0,0.0827]
[1735207239967,4.56e-05,95561.0,95560.0,0.15398632]
[1735207240180,4.56e-05,95561.0,95560.0,0.16198632]
[1735207240375,4.56e-05,95561.0,95560.0,0.15098632]
[1735207240581,4.56e-05,95561.0,95560.0,0.21490618]
[1735207240727,4.56e-05,95561.0,95560.0,0.22290618]
[1735207240933,4.56e-05,95561.0,95560.0,0.21790618]
[1735207241136,4.56e-05,95561.0,95560.0,0.22690618]
[1735207241340,4.56e-05,95561.0,95560.0,1.07011448]
[1735207241540,4.56e-05,95561.0,95560.0,0.97690618]
[1735207241746,4.56e-05,95561.0,95560.0,1.07311448]
[1735207242132,4.56e-05,95561.0,95560.0,0.97311448]
[1735207242278,4.56e-05,95561.0,95560.0,0.81298632]
[1735207242456,4.56e-05,95561.0,95560.0,0.55]
[1735207242865,4.56e-05,95561.0,95560.0,0.555]
[1735207243226,4.56e-05,95561.0,95560.0,0.51]
[1735207243640,4.56e-05,95561.0,95560.0,0.517]
[1735207243767,4.56e-05,95561.0,95560.0,0.5]
[1735207243978,4.56e-05,95561.0,95560.0,0.51]
[1735207244203,4.56e-05,95561.0,95560.0,0.502]
[1735207244401,4.56e-05,95561.0,95560.0,0.5]
[1735207245373,4.56e-05,95561.0,95560.0,0.4862]
[1735207245488,4.56e-05,95561.0,95560.0,0.53982]
[1735207245711,4.56e-05,95561.0,95560.0,0.4912]
[1735207245955,4.56e-05,95561.0,95560.0,0.4862]
[1735207246155,4.56e-05,95561.0,95560.0,0.4962]
[1735207246360,4.56e-05,95561.0,95560.0,0.4882]
[1735207246557,4.56e-05,95561.0,95560.0,0.4862]
[1735207247170,0.0807456,95561.0,95560.0,0.4862]
[1735207247569,0.0807456,95561.0,95560.0,0.4912]
[1735207249289,0.0807456,95561.0,95560.0,0.4872]
[1735207249615,0.0807456,95561.0,95560.0,0.4922]
[1735207249814,0.0807456,95561.0,95560.0,0.4872]
[1735207250175,0.0807456,95561.0,95560.0,0.4882]
[1735207250378,0.0807456,95561.0,95560.0,0.4872]
[1735207250599,0.0817456,95561.0,95560.0,0.4862]
[1735207250802,0.0855373,95561.0,95560.0,0.4872]
[1735207250974,0.18952362,95561.0,95560.0,0.4872]
[1735207251178,0.18852362,95561.0,95560.0,0.4872]
[1735207252189,0.18852362,95561.0,95560.0,0.4862]
[1735207252432,0.18952362,95561.0,95560.0,0.4862]
[1735207252655,0.10882362,95561.0,95560.0,0.4872]
[1735207252773,0.10782362,95561.0,95560.0,0.4872]
[1735207253225,0.10882362,95561.0,95560.0,0.4872]
[1735207253706,0.28749369,95561.0,95560.0,0.4872]
[1735207253920,0.30949369,95561.0,95560.0,0.4862]
[1735207254276,0.30949369,95561.0,95560.0,0.4863712]
[1735207254524,0.25662362,95561.0,95560.0,0.4863712]
[1735207254703,0.21352362,95561.0,95560.0,0.4863712]
[1735207256757,0.21152362,95561.0,95560.0,0.4863712]
[1735207256913,0.21652362,95561.0,95560.0,0.4863712]
[1735207257320,0.21152362,95561.0,95560.0,0.4863712]
[1735207257752,0.21652362,95561.0,95560.0,0.4863712]
[1735207258039,0.21652362,95561.0,95560.0,0.4853712]
[1735207258236,0.21152362,95561.0,95560.0,0.4853712]
[1735207258451,0.21452362,95561.0,95560.0,0.4853712]
[1735207260416,0.21152362,95561.0,95560.0,0.4853712]
[1735207260585,0.21452362,95561.0,95560.0,0.4853712]
[1735207261333,0.21152362,95561.0,95560.0,0.4853712]
[1735207261496,0.21352362,95561.0,95560.0,0.4853712]
[1735207261695,0.18673192,95561.0,95560.0,0.4853712]
[1735207261907,0.18804012,95561.0,95560.0,0.4853712]
[1735207262162,0.18673192,95561.0,95560.0,0.4853712]
[1735207262359,0.0033538,95561.0,95560.0,0.4853712]
[1735207262560,0.0020456,95561.0,95560.0,0.53390832]
[1735207262767,4.56e-05,95561.0,95560.0,0.4853712]
[1735207263123,0.0020456,95561.0,95560.0,0.4853712]
[1735207263520,4.56e-05,95561.0,95560.0,0.4853712]
[1735207264737,4.56e-05,95561.0,95560.0,0.4863712]
[1735207264937,0.0824373,95561.0,95560.0,0.4863712]
[1735207265118,0.23772786,95561.0,95560.0,0.4863712]
[1735207265477,0.18642362,95561.0,95560.0,0.4903712]
[1735207265787,0.18773182,95561.0,95560.0,0.4863712]
[1735207266131,0.18773182,95561.0,95560.0,0.4873712]
[1735207266679,0.18773182,95561.0,95560.0,0.4863712]
[1735207266886,0.18873182,95561.0,95560.0,0.4863712]
[1735207267090,0.0048373,95561.0,95560.0,0.4863712]
[1735207267294,0.0038373,95561.0,95560.0,0.4863712]
[1735207267697,0.0048373,95561.0,95560.0,0.4863712]
[1735207268124,0.00614546,95561.0,95560.0,0.4863712]
[1735207268913,0.0048373,95561.0,95560.0,0.4863712]
[1735207270003,0.00614546,95561.0,95560.0,0.4863712]
[1735207270809,0.0048373,95561.0,95560.0,0.4863712]
[1735207271211,0.00614546,95561.0,95560.0,0.4863712]
[1735207271408,0.00614546,95561.0,95560.0,0.4813712]
[1735207271610,0.11013178,95561.0,95560.0,0.4813712]
[1735207274570,0.16407466,95561.0,95560.0,0.4813712]
[1735207275749,0.11013178,95561.0,95560.0,0.4813712]
[1735207277260,0.28313178,95561.0,95560.0,0.4813712]
[1735207277430,0.28313178,95561.0,95560.0,0.4395132]
[1735207277431,0.36162362,95561.0,95560.0,0.4395132]
[1735207278846,0.36162362,95561.0,95560.0,0.3976552]
[1735207279026,0.36162362,95561.0,95560.0,0.3348682]
[1735207279234,0.59841568,95561.0,95560.0,0.3348682]
[1735207279433,0.59841568,95561.0,95560.0,0.3139392]
[1735207279667,1.01738468,95561.0,95560.0,0.2302232]
[1735207279868,1.01638468,95561.0,95560.0,0.2292232]
[1735207280316,1.02038468,95561.0,95560.0,0.2292232]
[1735207280524,1.02038468,95561.0,95560.0,0.1245782]
[1735207280726,0.4429277,95540.0,95522.0,0.00103966]
[1735207280955,0.61213919,95540.0,95522.0,0.00103966]
[1735207281584,0.54691402,95540.0,95522.0,0.00103966]
[1735207282246,0.54691402,95540.0,95539.0,0.00115621]
[1735207282450,0.46711402,95540.0,95539.0,0.00115621]
[1735207282874,0.46811402,95540.0,95539.0,0.00115621]
[1735207284128,0.47851967,95540.0,95539.0,0.00115621]
[1735207284329,0.55528404,95540.0,95539.0,0.00115621]
[1735207288657,0.57828404,95540.0,95539.0,0.00115621]
[1735207288866,0.62598404,95540.0,95539.0,0.00115621]
[1735207291115,0.62598404,95540.0,95522.0,0.00103966]
[1735207291116,0.00134379,95539.0,95522.0,0.00103966]
[1735207291330,0.209373,95523.0,95522.0,0.00156075]
[1735207291530,0.2131647,95523.0,95522.0,0.00156075]
[1735207291933,0.2490637,95523.0,95522.0,0.00156075]
[1735207292137,0.31715102,95523.0,95522.0,0.00156075]
[1735207292349,0.31715102,95523.0,95522.0,0.00356075]
[1735207292759,0.31715102,95523.0,95522.0,0.00156075]
[1735207292965,0.31715102,95523.0,95522.0,0.00956075]
[1735207293176,0.31715102,95523.0,95522.0,0.01156075]
[1735207293381,0.39073912,95523.0,95522.0,0.00356075]
[1735207293803,0.31715102,95523.0,95522.0,0.00156075]
[1735207294005,0.31815102,95523.0,95522.0,0.00156075]
[1735207294647,0.49115102,95523.0,95522.0,0.00156075]
[1735207295265,0.49115102,95523.0,95522.0,0.00356075]
[1735207295475,0.50165793,95523.0,95522.0,0.00356075]
[1735207295686,0.59578175,95523.0,95522.0,0.00356075]
[1735207298808,0.72088175,95523.0,95522.0,0.00356075]
[1735207299008,0.72088175,95523.0,95522.0,7.5e-07]
[1735207299692,0.0823917,95511.0,95510.0,7.7e-07]
[1735207299847,0.0823917,95511.0,95479.0,0.09546587]
[1735207299848,0.209413,95505.0,95503.0,6.7e-07]
[1735207300049,0.1767917,95501.0,95500.0,0.01761597]
[1735207300245,0.0037917,95480.0,95479.0,0.09546587]
[1735207300495,0.31724502,95480.0,95479.0,0.0014181]
[1735207300694,0.2132587,95480.0,95479.0,0.0014181]
[1735207300893,0.31724502,95480.0,95479.0,0.0014181]
[1735207301448,0.31776585,95480.0,95479.0,0.0014181]
[1735207301697,0.32837696,95480.0,95479.0,0.0014181]
[1735207302068,0.22439064,95480.0,95479.0,0.0014181]
[1735207302481,0.22439064,95480.0,95479.0,0.0094181]
[1735207302680,0.22539064,95480.0,95479.0,0.0094181]
[1735207303285,0.00152083,95480.0,95479.0,0.0094181]
[1735207303502,0.00152083,95480.0,95479.0,0.1334181]
[1735207307467,0.00152083,95480.0,95479.0,0.0562181]
[1735207307816,0.04459512,95480.0,95479.0,0.0094181]
[1735207308118,0.00152083,95480.0,95479.0,0.0094181]
[1735207313807,0.00152083,95480.0,95479.0,0.0079181]
[1735207314384,0.00283002,95480.0,95479.0,0.0079181]
[1735207314584,0.18781634,95480.0,95479.0,0.0079181]
[1735207315388,0.19160804,95480.0,95479.0,0.0079181]
[1735207317240,0.37407407,95480.0,95479.0,0.0079181]
[1735207317453,0.39576488,95480.0,95479.0,0.0079181]
[1735207318068,0.39576488,95480.0,95479.0,0.006]
[1735207318444,0.39576488,95480.0,95477.0,8.56e-05]
[1735207318445,0.0037917,95478.0,95477.0,8.56e-05]
[1735207318832,0.10908753,95478.0,95477.0,8.56e-05]
[1735207319035,0.10908753,95478.0,95471.0,0.0002]
[1735207319036,0.3072917,95472.0,95471.0,1e-06]
[1735207319255,0.2942917,95465.0,95459.0,0.000104]
[1735207319432,0.0037917,95460.0,95459.0,0.000104]
[1735207319636,0.25529612,95460.0,95459.0,0.000104]
[1735207319865,0.10398632,95460.0,95459.0,0.000104]
[1735207320073,0.10529594,95460.0,95459.0,0.000104]
[1735207320548,0.10908764,95460.0,95459.0,0.000104]
[1735207321494,0.209509,95461.0,95459.0,0.000104]
[1735207321682,0.00130952,95460.0,95459.0,0.000104]
[1735207322060,0.00230952,95460.0,95459.0,0.002104]
[1735207322261,0.00230952,95460.0,95459.0,0.000104]
[1735207322467,0.14742839,95460.0,95459.0,0.002104]
[1735207322682,0.10529584,95460.0,95459.0,0.002104]
[1735207323031,0.10529584,95460.0,95459.0,0.005104]
[1735207323807,0.10908754,95460.0,95459.0,0.005104]
[1735207324218,0.10529584,95460.0,95459.0,0.005104]
[1735207324464,0.00130959,95460.0,95459.0,0.000104]
[1735207324636,0.2095,95466.0,95459.0,0.004104]
[1735207324870,0.00130943,95465.0,95459.0,0.000104]
[1735207325064,0.209503,95464.0,95459.0,0.000104]
[1735207325270,0.21081442,95463.0,95459.0,0.005104]
[1735207325483,0.21081442,95463.0,95459.0,0.000104]
[1735207325811,0.21081442,95463.0,95459.0,0.005104]
[1735207326395,0.21081442,95463.0,95459.0,0.000104]
[1735207326800,0.21081442,95463.0,95459.0,0.0001897]
[1735207327157,0.209505,95463.0,95459.0,0.0001897]